[Event "FRA-ch Teams Top 16-B 2022"]
[Site "Chartres"]
[Date "2022.06.12"]
[Round "4.2"]
[White "Duboue, Peio"]
[Black "Moussard, Jules"]
[Result "1/2-1/2"]
[ECO "B06"]
[WhiteElo "2426"]
[BlackElo "2651"]
[Annotator "TA"]
[PlyCount "76"]
[EventDate "2022.06.09"]
[EventType "team-tourn"]
[EventCountry "FRA"]
[SourceTitle "playchess.com"]
[Source "ChessBase"]
[SourceQuality "1"]
[TimeControl "40/5400+30:1800+30"]

{[%evp 9,76,54,39,28,62,38,49,51,49,35,68,36,56,64,66,0,0,-10,12,0,5,0,0,8,16,22,32,-25,-20,-75,-17,-22,65,64,60,57,54,59,61,61,52,52,65,31,31,0,0,1,1,0,0,0,19,3,16,0,0,0,0,0,0,0,0,0,0,0,3,0,2]} 1. e4 {[%emt 0:00:02]} g6 {[%emt 0:00:13]} 2. d4 {[%emt 0:00:07]} Bg7 {[%emt 0:00:05]} 3. Nc3 {[%emt 0:00:36]} d6 {[%emt 0:00:36]} 4. Be3 {[%emt 0:01:17]} a6 {[%emt 0:01:06]} 5. Qd2 {[%emt 0:01:57]} b5 {[%emt 0:02:47]} 6. h4 {[%emt 0:02:30] B06: Modern Defence.} h6 {[%emt 0:05:28]} 7. O-O-O {[%emt 0:19:45]} Bb7 {[%emt 0:01:53]} 8. f3 {[%emt 0:01:40] White is slightly better.} Nd7 {[%emt 0:00:08]} 9. g4 {[%emt 0:01:09]} Rc8 {[%emt 0:11:57]} 10. d5 {[%emt 0:03:09]} c5 {[%emt 0:05:30]} 11. dxc6 {[%emt 0:00:10]} Bxc6 {[%emt 0:03:15] [#]} 12. Nd5 $146 {[%emt 0:01:34]} (12. Nge2 $14) ({Predecessor:} 12. Nge2 Qa5 13. Kb1 Ngf6 14. Nd4 Bb7 15. Bd3 Ne5 16. g5 hxg5 17. hxg5 Nh5 18. Qf2 Rxc3 19. bxc3 Qxc3 {0-1 (40) Van Foreest,J (2584)-Seliverstov,V (2464) Chess.com INT 2017}) 12... Bxd5 $11 {[%emt 0:10:37]} 13. Qxd5 {[%emt 0:04:52]} Qc7 {[%emt 0:08:18][%csl Gc8][%cal Rc7c2] [#] Against Qb7} (13... Qa5 $5 {[%cal Rg7b2]} 14. Ne2 Ngf6 $11) 14. Qd2 {[%emt 0:02:56] Active counter play!} Nb6 {[%emt 0:01:00]} 15. Rh2 {[%emt 0:01:45]} Na4 {[%emt 0:05:41]} 16. Bd4 {[%emt 0:01:24]} Bxd4 {[%emt 0:00:11]} 17. Qxd4 {[%emt 0:00:05]} Nf6 {[%emt 0:00:09]} 18. Bh3 {[%emt 0:07:41]} (18. c3 $14) 18... g5 {[%emt 0:03:58]} 19. f4 {[%emt 0:08:13] [#]} (19. Bf1 $11 {remains equal.} Rg8 20. Kb1) 19... Nc5 {[%emt 0:00:24]} (19... gxf4 $2 20. g5 e5 21. Qxd6 (21. Qb4 hxg5 22. Bxc8 Qxc8 $16) 21... Qxd6 22. Rxd6 Nxe4 23. Rxa6 $16) (19... Qa5 $1 $17 {Hoping for ...Rc4.} 20. hxg5 hxg5 21. fxg5 Rc4) 20. e5 {[%emt 0:06:48][%cal Be4e5,Be5d6,Bd6c7][%mdl 32]} Ne6 {[%emt 0:01:14]} (20... dxe5 $11 21. Qxe5 (21. fxe5 Nfe4 $17) 21... gxf4) 21. exd6 $14 {[%emt 0:03:26]} Nxd4 {[%emt 0:00:13]} 22. dxc7 {[%emt 0:00:03]} Ne6 {[%emt 0:00:07]} 23. fxg5 {[%emt 0:13:50]} hxg5 {[%emt 0:00:18]} 24. hxg5 {[%emt 0:00:06]} Nd7 {[%emt 0:12:26][%cal Bf6d7,Bd7f8,Bf8e6][%mdl 32]} 25. g6 {[%emt 0:01:22]} fxg6 {[%emt 0:01:38]} 26. g5 {[%emt 0:01:56][%cal Oh3e6]} (26. Rhd2 $5 {[%cal Rd2d7]} Rxc7 27. Bg2 $14) 26... Rxc7 {[%emt 0:00:42]} 27. Rhd2 {[%emt 0:00:44]} Ndf8 {[%emt 0:01:35] The position is equal.} 28. Bxe6 {[%emt 0:01:36]} Nxe6 {[%emt 0:00:05]} 29. Nf3 {[%emt 0:00:15]} O-O {[%emt 0:01:16]} 30. Re1 {[%emt 0:02:57]} Nf4 {[%emt 0:03:16]} 31. Nd4 {[%emt 0:00:55]} Rc5 {[%emt 0:06:02]} 32. Ne6 {[%emt 0:05:41]} Nxe6 {[%emt 0:00:03]} 33. Rxe6 $11 {[%emt 0:06:29][%mdl 4096] Endgame KRR-KRR} Rf1+ {[%emt 0:01:03]} 34. Rd1 {[%emt 0:00:00]} Kf7 {[%emt 0:00:56] Threatens to win with ...Rxd1+.} 35. Rxa6 {[%emt 0:00:00]} Rff5 {[%emt 0:02:55]} 36. a4 {[%emt 0:00:00]} bxa4 {[%emt 0:00:26]} 37. Rxa4 {[%emt 0:00:00]} Rxg5 {[%emt 0:00:05]} 38. Re4 {[%emt 0:00:00]} Rg2 {[%emt 0:03:01] Weighted Error Value: White=0.17 (very precise) /Black=0.11 (very precise)} 1/2-1/2

[Event "FRA-ch Teams Top 16-B 2022"]
[Site "Chartres"]
[Date "2022.06.12"]
[Round "4.3"]
[White "Gozzoli, Yannick"]
[Black "Di Nicolantonio, Lucas"]
[Result "1-0"]
[ECO "D31"]
[WhiteElo "2591"]
[BlackElo "2399"]
[Annotator "TA"]
[PlyCount "129"]
[EventDate "2022.06.09"]
[EventType "team-tourn"]
[EventCountry "FRA"]
[SourceTitle "playchess.com"]
[Source "ChessBase"]
[SourceQuality "1"]
[TimeControl "40/5400+30:1800+30"]

{[%evp 11,129,0,7,-40,-40,-47,-33,-41,-42,-45,-40,-38,-29,-44,-35,-40,-31,-43,-38,-47,-30,-31,-19,-26,-1,-14,0,0,0,0,0,0,66,67,84,72,86,84,83,76,85,75,89,91,89,83,83,83,83,68,68,72,72,64,63,67,77,64,99,102,102,97,97,98,101,93,81,81,81,81,85,79,79,72,72,72,76,62,62,63,86,86,72,8,8,8,33,35,37,43,68,68,90,90,174,120,149,154,141,141,141,141,283,283,1144,1068,842,641,29960,29960,29958,29952,29952,29948,29941,12681,6627,6527,5057,982]} 1. d4 {[%emt 0:00:03]} d5 {[%emt 0:00:07]} 2. c4 {[%emt 0:00:27]} c6 {[%emt 0:00:20]} 3. Nf3 {[%emt 0:00:30]} Nf6 {[%emt 0:00:13]} 4. Nc3 {[%emt 0:00:25]} dxc4 {[%emt 0:00:21]} 5. a4 {[%emt 0:07:22]} e6 {[%emt 0:00:48]} 6. e4 {[%emt 0:01:09]} Bb4 {[%emt 0:00:57]} 7. Bxc4 {[%emt 0:00:05] D31: Queen's Gambit Declined: Semi-Slav without ...Nf6 (+ Marshall Gambit and Noteboom) and Exchange Variation lines without ...Nf6.} (7. Bg5 $11 {should be considered.}) 7... Nxe4 $1 $15 {[%emt 0:01:34]} 8. O-O {[%emt 0:02:30]} Nf6 {[%emt 0:01:02]} 9. Bg5 {[%emt 0:00:39] Black is slightly better. The modern move.} O-O {[%emt 0:01:34]} 10. Qe2 {[%emt 0:02:03] [#]} h6 $146 {[%emt 0:07:03]} ({Predecessor:} 10... Be7 11. Rad1 a5 12. Ne5 Na6 13. Rd3 Nd5 14. Bc1 f6 15. Ng4 f5 16. Ne5 Nab4 {1-0 (76) Nechaeva,M (2226)-Korbut,E (2459) Moscow 2008}) 11. Bh4 {[%emt 0:09:48]} a5 {[%emt 0:02:15]} 12. Rad1 {[%emt 0:00:40]} Be7 {[%emt 0:20:31]} 13. Ne5 {[%emt 0:04:19]} Nd5 {[%emt 0:03:24]} 14. Bg3 {[%emt 0:02:43]} Nd7 {[%emt 0:05:57]} 15. Bd3 {[%emt 0:02:47]} Bb4 {[%emt 0:10:49]} 16. Bb1 {[%emt 0:07:28]} ({Don't go for} 16. Qe4 $2 f5 17. Qe1 f4 18. Nxc6 bxc6 $19) 16... f5 {[%emt 0:08:46]} ({Don't play} 16... Nxc3 17. bxc3 Be7 18. Bc2 $14) 17. Nxd5 {[%emt 0:11:37]} cxd5 {[%emt 0:02:49]} 18. Nd3 {[%emt 0:04:42]} Nf6 {[%emt 0:04:24]} 19. Nxb4 {[%emt 0:07:47]} axb4 {[%emt 0:00:12]} 20. Rc1 {[%emt 0:00:04]} Rxa4 {[%emt 0:06:21]} 21. Bc7 {[%emt 0:00:54]} Qe8 {[%emt 0:02:55]} (21... Qd7 $11) 22. Bd6 $36 {[%emt 0:02:25][%mdl 2048] White is more active.} Rf7 {[%emt 0:03:27] [#]} 23. Bxf5 $1 {[%emt 0:02:49]} Ne4 {[%emt 0:06:32]} 24. Bxe4 {[%emt 0:01:23]} dxe4 {[%emt 0:00:05]} 25. Qxe4 {[%emt 0:00:29]} Bd7 {[%emt 0:00:54]} 26. Rfe1 {[%emt 0:03:19] 0x0.00166c6cd281dp-1022s more active pieces.} b3 {[%emt 0:02:07]} 27. Qxb7 {[%emt 0:09:46]} Rxd4 {[%emt 0:00:35]} 28. Bg3 {[%emt 0:00:03]} Bb5 {[%emt 0:02:47]} 29. Qb6 {[%emt 0:00:54][%csl LRd4,LRe6]} Rc4 {[%emt 0:02:29]} 30. Rcd1 {[%emt 0:04:36] aiming for Rd8.} Qc6 {[%emt 0:00:04]} 31. Qe3 {[%emt 0:00:05]} Rd7 {[%emt 0:03:28]} 32. h3 {[%emt 0:02:54]} Rxd1 {[%emt 0:00:34]} 33. Rxd1 {[%emt 0:00:03]} Qe4 {[%emt 0:00:34]} 34. Qxb3 {[%emt 0:01:39]} Bc6 {[%emt 0:00:40][%csl Gc6][%cal Re4g2]} 35. f3 $1 {[%emt 0:00:05]} Qc2 {[%emt 0:00:47]} 36. Rd8+ {[%emt 0:01:10]} Kh7 {[%emt 0:00:04]} 37. Qxc2+ {[%emt 0:01:33]} Rxc2 $16 {[%emt 0:00:03][%mdl 4096] Endgame KRB-KRB} 38. Rc8 {[%emt 0:00:06]} Be4 {[%emt 0:00:54]} 39. Re8 {[%emt 0:01:39]} Bd5 {[%emt 0:00:50]} 40. Be5 {[%emt 0:00:05]} g5 {[%emt 0:00:33]} 41. Re7+ {[%emt 0:36:12]} Kg6 {[%emt 0:08:21]} 42. Rg7+ {[%emt 0:00:00]} Kf5 {[%emt 0:02:38]} 43. Bc3 {[%emt 0:00:00]} h5 {[%emt 0:09:54]} 44. Rf7+ {[%emt 0:00:00]} Kg6 {[%emt 0:00:04]} 45. Rf8 {[%emt 0:00:00]} Re2 {[%emt 0:07:08]} 46. Rf6+ {[%emt 0:00:00]} Kh7 {[%emt 0:00:10][%cal Og5g4]} 47. g4 {[%emt 0:00:00]} (47. Kh2 $16) 47... hxg4 $11 {[%emt 0:00:13]} 48. hxg4 {[%emt 0:00:00]} Rc2 {[%emt 0:00:49][%cal Oc2c3]} 49. Rf8 {[%emt 0:00:00]} Re2 {[%emt 0:00:43]} 50. Kf1 {[%emt 0:00:00]} Bc4 {[%emt 0:03:17]} 51. Rc8 {[%emt 0:00:14]} Bb5 {[%emt 0:00:44]} 52. Kg1 {[%emt 0:00:19]} Bd3 {[%emt 0:01:59]} (52... Kg6 $16) 53. Rh8+ {[%emt 0:02:56]} Kg6 {[%emt 0:00:03]} 54. Rh2 {[%emt 0:01:33] And now Rxe2 would win.} Re3 {[%emt 0:01:00] [#]} 55. Kf2 {[%emt 0:00:05]} Re2+ {[%emt 0:00:02]} 56. Kg3 {[%emt 0:00:03] Black must now prevent Rxe2.} Rxh2 {[%emt 0:00:13] Black cannot hold the game after this.} (56... Re3 $16 {might work better.}) 57. Kxh2 $16 {[%emt 0:00:01] KB-KB} Bb5 $2 {[%emt 0:01:10]} (57... Kf7 58. Kg3 Be2) 58. Kg3 $18 {[%emt 0:00:05]} Bc6 {[%emt 0:00:19]} 59. f4 {[%emt 0:00:19]} gxf4+ {[%emt 0:00:06]} 60. Kxf4 {[%emt 0:00:03]} Bb5 {[%emt 0:01:01]} 61. Bd2 {[%emt 0:00:11]} Be2 {[%emt 0:00:25] [#]} 62. g5 $1 {[%emt 0:00:05]} Kf7 {[%emt 0:00:31]} 63. Ke5 {[%emt 0:00:06]} (63. b4 $142 e5+ 64. Kxe5 Bd3 65. Kd4 Bg6 66. Kd5 Bd3 67. Kc6 Be4+ 68. Kb6) 63... Ke7 {[%emt 0:00:13]} 64. b4 {[%emt 0:00:33]} Bd3 {[%emt 0:00:07]} 65. Be3 {[%emt 0:00:05] Weighted Error Value: White=0.06 (flawless) /Black=0.26 (precise)} (65. Bf4 $142 Bb5 66. Bd2 (66. g6 Be8 $16)) 1-0

[Event "FRA-ch Teams Top 16-B 2022"]
[Site "Chartres"]
[Date "2022.06.12"]
[Round "4.4"]
[White "Real, Thibault"]
[Black "Cornette, Matthieu"]
[Result "1/2-1/2"]
[ECO "B17"]
[WhiteElo "2262"]
[BlackElo "2570"]
[Annotator "TA"]
[PlyCount "102"]
[EventDate "2022.06.09"]
[EventType "team-tourn"]
[EventCountry "FRA"]
[SourceTitle "playchess.com"]
[Source "ChessBase"]
[SourceQuality "1"]
[TimeControl "40/5400+30:1800+30"]

{[%evp 18,102,9,18,22,24,19,19,20,0,0,-4,-7,-7,-3,-23,-23,-23,-22,-22,-23,-22,-22,-18,-9,-20,0,-73,0,0,0,-19,0,0,1,0,0,0,0,0,0,0,0,0,0,0,0,0,0,0,0,0,0,0,0,0,0,0,0,0,0,0,0,0,0,0,0,0,0,0,0,0,0,0,0,0,0,0,0,0,0,0,0,0,0,0,0]} 1. e4 {[%emt 0:00:02]} c6 {[%emt 0:00:35]} 2. Nf3 {[%emt 0:00:13]} d5 {[%emt 0:00:12]} 3. Nc3 {[%emt 0:00:06]} dxe4 {[%emt 0:01:24]} 4. Nxe4 {[%emt 0:00:03]} Nf6 {[%emt 0:00:08]} 5. Qe2 {[%emt 0:00:08]} Nxe4 {[%emt 0:00:32]} 6. Qxe4 {[%emt 0:00:08]} Nd7 {[%emt 0:00:08]} 7. Bc4 {[%emt 0:00:10]} Nf6 {[%emt 0:00:08]} 8. Qe2 {[%emt 0:00:47]} Bf5 {[%emt 0:01:16]} 9. d4 {[%emt 0:08:53]} e6 {[%emt 0:01:57]} 10. O-O {[%emt 0:04:12]} Be7 {[%emt 0:02:09] B17: Caro-Kann: Modern Line (4...Nd7).} 11. c3 {[%emt 0:06:42]} O-O {[%emt 0:08:43]} 12. Bg5 {[%emt 0:08:05]} h6 {[%emt 0:09:50] [#]} 13. Bxf6 $146 {[%emt 0:02:25]} ({Predecessor:} 13. Bf4 Nd5 14. Be5 Re8 15. Rad1 Bf8 16. Rfe1 b5 17. Bb3 a5 18. a3 a4 19. Ba2 Qb6 20. h3 {½-½ (25) Boricsev,O (2360)-Nguyen,A (2485) Budapest 1999}) 13... Bxf6 {[%emt 0:00:06]} 14. Rad1 {[%emt 0:01:45]} Qc7 {[%emt 0:02:03]} 15. Rfe1 {[%emt 0:03:16]} Rad8 {[%emt 0:03:24]} 16. Bd3 {[%emt 0:13:49]} Bxd3 {[%emt 0:03:41]} 17. Rxd3 {[%emt 0:00:47]} c5 {[%emt 0:07:20]} 18. dxc5 {[%emt 0:01:56]} Rxd3 {[%emt 0:01:36]} 19. Qxd3 {[%emt 0:00:07]} Qxc5 {[%emt 0:00:04]} 20. Rd1 {[%emt 0:04:24]} b5 {[%emt 0:03:59]} 21. Qe3 {[%emt 0:08:53]} Rc8 {[%emt 0:07:41]} 22. Rd7 {[%emt 0:09:44]} (22. Qxc5 $11 {remains equal.} Rxc5 23. a3) 22... a5 {[%emt 0:01:20]} (22... Qf5 $17 {White must now prevent ...Qb1+.} 23. Rd3 b4) 23. Qxc5 $11 {[%emt 0:04:22] The position is equal.} Rxc5 {[%emt 0:00:10][%mdl 4096] Endgame KRB-KRN} 24. Nd2 {[%emt 0:00:36]} Bg5 {[%emt 0:35:36]} 25. g3 {[%emt 0:04:21]} Rc8 {[%emt 0:00:30]} 26. h4 {[%emt 0:06:22]} Bxd2 {[%emt 0:03:34]} 27. Rxd2 {[%emt 0:00:06] KR-KR} Kf8 {[%emt 0:00:05]} 28. Rd7 {[%emt 0:01:17]} Rc5 {[%emt 0:00:12]} 29. Rb7 {[%emt 0:00:56]} g5 {[%emt 0:00:20]} 30. hxg5 {[%emt 0:02:20]} hxg5 {[%emt 0:00:01]} 31. Ra7 {[%emt 0:05:53]} a4 {[%emt 0:00:26]} 32. Ra5 {[%emt 0:00:26]} Ke7 {[%emt 0:04:10]} 33. c4 {[%emt 0:00:15]} Rxc4 {[%emt 0:00:10]} 34. Rxb5 {[%emt 0:00:04]} f5 {[%emt 0:00:05]} 35. b3 {[%emt 0:01:55]} axb3 {[%emt 0:01:41]} 36. axb3 {[%emt 0:00:21]} Rc1+ {[%emt 0:00:54]} 37. Kg2 {[%emt 0:00:11]} g4 {[%emt 0:00:01]} 38. Rb6 {[%emt 0:01:16]} Kf6 {[%emt 0:01:33]} 39. Rb5 {[%emt 0:00:07]} Rb1 {[%emt 0:00:44]} 40. Kh2 {[%emt 0:00:38]} Ke7 {[%emt 0:00:17]} 41. Rb6 {[%emt 0:30:25]} Kd7 {[%emt 0:02:22]} 42. Kg2 {[%emt 0:00:00]} Re1 {[%emt 0:00:09]} 43. b4 {[%emt 0:00:00]} Rd1 {[%emt 0:04:32]} 44. b5 {[%emt 0:00:00]} Rd6 {[%emt 0:00:34]} 45. Rb7+ {[%emt 0:00:00]} Kc8 {[%emt 0:00:03]} 46. Re7 {[%emt 0:00:00]} Rb6 {[%emt 0:00:14]} 47. f3 $1 {[%emt 0:00:00]} Kd8 {[%emt 0:00:46]} 48. Rg7 {[%emt 0:06:04]} gxf3+ {[%emt 0:00:04]} 49. Kxf3 {[%emt 0:00:00]} Rxb5 {[%emt 0:00:06]} 50. Kf4 {[%emt 0:00:00]} Ke8 {[%emt 0:01:04]} 51. Kg5 {[%emt 0:00:00]} f4+ {[%emt 0:01:45] Weighted Error Value: White=0.06 (flawless) /Black=0.04 (flawless)} 1/2-1/2

[Event "FRA-ch Teams Top 16-B 2022"]
[Site "Chartres"]
[Date "2022.06.12"]
[Round "4.5"]
[White "Degraeve, Jean-Marc"]
[Black "Hutois, Mickael"]
[Result "1-0"]
[ECO "C50"]
[WhiteElo "2520"]
[BlackElo "2238"]
[Annotator "TA"]
[PlyCount "81"]
[EventDate "2022.06.09"]
[EventType "team-tourn"]
[EventCountry "FRA"]
[SourceTitle "playchess.com"]
[Source "ChessBase"]
[SourceQuality "1"]
[TimeControl "40/5400+30:1800+30"]

{[%evp 9,81,17,29,5,9,8,5,0,16,0,0,-13,-4,-14,0,0,0,-33,-23,-28,56,57,48,45,53,47,45,38,47,50,64,64,151,102,128,89,152,163,139,125,343,340,382,393,379,392,386,364,393,379,447,450,556,554,1302,1290,1277,1234,1300,407,1323,1143,1084,891,1054,955,857,0,0,0,0,-546,29995,29996]} 1. e4 {[%emt 0:00:04]} e5 {[%emt 0:00:05]} 2. Nf3 {[%emt 0:00:10]} Nc6 {[%emt 0:00:03]} 3. Bc4 {[%emt 0:00:17]} Nf6 {[%emt 0:00:12]} 4. d3 {[%emt 0:00:33]} Bc5 {[%emt 0:00:21]} 5. O-O {[%emt 0:01:25]} O-O {[%emt 0:01:02]} 6. Nbd2 {[%emt 0:02:01] C50: Hungarian Defence and Giuoco Pianissimo.} a5 {[%emt 0:02:06]} 7. h3 {[%emt 0:02:07]} d6 {[%emt 0:01:26] [#]} 8. Re1 $146 {[%emt 0:01:21] The position is equal.} ({Predecessor:} 8. c3 Be6 9. Re1 Bxc4 10. Nxc4 Re8 11. Be3 b5 12. Ncd2 Bxe3 13. Rxe3 a4 14. a3 {1-0 (52) Andriasian,Z (2606)-Vachier Lagrave,M (2778) Chess.com INT 2020}) 8... Be6 {[%emt 0:00:17]} 9. Bxe6 {[%emt 0:07:24]} fxe6 {[%emt 0:00:38]} 10. Nf1 {[%emt 0:02:33]} Nh5 {[%emt 0:09:51]} 11. c3 {[%emt 0:09:14]} Qf6 {[%emt 0:06:01]} 12. Be3 {[%emt 0:01:16]} Nf4 {[%emt 0:02:20]} 13. d4 {[%emt 0:07:29]} (13. Bxf4 $5 Qxf4 14. Qb3 $11) 13... exd4 {[%emt 0:06:16]} (13... Ba7 $5 {[%cal Rf4h3]}) 14. cxd4 {[%emt 0:00:26]} Bb4 {[%emt 0:02:09]} (14... Ba7 $11) 15. Bxf4 $14 {[%emt 0:01:01]} Qxf4 {[%emt 0:01:56]} 16. Re2 $36 {[%emt 0:00:31][%mdl 2048] And now a3 would win. White is more active.} a4 {[%emt 0:10:27]} 17. a3 {[%emt 0:03:02]} Ba5 {[%emt 0:00:05]} 18. Qxa4 {[%emt 0:00:09]} Bb6 {[%emt 0:00:25]} 19. Qc4 {[%emt 0:08:49]} Qh6 {[%emt 0:03:19][%cal Of8f3] Hoping for ...Rxf3!} 20. N1d2 {[%emt 0:05:10]} Ra5 {[%emt 0:11:08]} (20... Rf4 $14) 21. b4 {[%emt 0:08:18]} ({White should play} 21. d5 $1 {[%cal Rd5c6]} Nd8 22. b4) 21... Rh5 $16 {[%emt 0:00:06]} 22. b5 {[%emt 0:00:11]} Ne7 {[%emt 0:01:10]} (22... Na5 $142 23. Qd3 Qg6) 23. a4 {[%emt 0:00:06]} Ba5 {[%emt 0:13:38]} 24. Ra3 {[%emt 0:08:30]} g5 $2 {[%emt 0:06:31]} (24... d5 $16 {is a better defense.} 25. exd5 Nxd5) 25. Nh2 $1 $18 {[%emt 0:01:56] Black must now prevent Nb3.} d5 {[%emt 0:04:16]} 26. exd5 {[%emt 0:01:50]} Nxd5 {[%emt 0:02:20]} 27. Ng4 {[%emt 0:01:50]} Qg6 {[%emt 0:00:23]} 28. Ne5 {[%emt 0:00:11]} Qg7 {[%emt 0:01:37]} 29. Ne4 {[%emt 0:01:38] Strongly threatening Nc5.} Qe7 {[%emt 0:05:34]} 30. Rg3 {[%emt 0:05:12]} Rf5 {[%emt 0:02:16]} 31. Nc5 {[%emt 0:01:27] Pair of Knights!} Rh4 {[%emt 0:02:35] [#]} 32. Nxe6 $1 {[%emt 0:07:56][%mdl 512]} Qxe6 {[%emt 0:05:57]} 33. Nf3 $1 {[%emt 0:00:02]} ({Stronger than} 33. Nc6 Re4 34. Rxe4 Qxe4 35. Nxa5 Qe1+ 36. Kh2 Qxa5 $11) 33... Qh6 {[%emt 0:00:00]} 34. Nxg5 {[%emt 0:05:41]} Kf8 {[%emt 0:00:00]} (34... Qxg5 $142 35. Qd3 Nf4 36. Qxf5 Nxe2+ 37. Kh2 Qxg3+ 38. fxg3 Rxd4 39. Qe6+ Kf8 40. Qxe2 Rxa4) 35. Ne6+ {[%emt 0:04:22]} Kf7 {[%emt 0:00:00]} 36. Rf3 {[%emt 0:00:41][%mdl 64] Deflection} Rxf3 {[%emt 0:00:28]} 37. Qxd5 {[%emt 0:00:06] White wants to mate with Nf4+.} Rf6 {[%emt 0:00:12] [#]} 38. Nf4+ $2 {[%emt 0:01:54]} (38. g4 $1 $18 c6 (38... Rxe6 39. Qd7+) 39. bxc6 $1 bxc6 40. Qd7+ Kg8 41. Qe8+ Rf8 42. Nxf8 Qxf8 43. Qd7 Rxh3 44. Re8) 38... Kg7 $11 {[%emt 0:00:23]} 39. Re7+ {[%emt 0:00:45]} Kh8 {[%emt 0:00:15]} 40. Ne6 {[%emt 0:02:02][%mdl 8192]} (40. Re8+ $11 Rf8 41. Qe5+ Kg8 42. Qd5+ Kh8 43. Qe5+ Kg8 44. Rxf8+ Kxf8 45. Qf5+ Kg8 46. Qd5+ Kh8 47. Qd8+ Kg7 48. Qe7+ Kg8 49. Nd5) 40... Rf8 $4 {[%emt 0:02:04][%mdl 8192]} 41. Qe5+ {[%emt 0:30:23] Weighted Error Value: White=0.53/Black=0.53} 1-0

[Event "FRA-ch Teams Top 16-B 2022"]
[Site "Chartres"]
[Date "2022.06.12"]
[Round "4.6"]
[White "Jaouen, Valentin"]
[Black "Movsesian, Sergei"]
[Result "0-1"]
[ECO "D02"]
[WhiteElo "2121"]
[BlackElo "2600"]
[Annotator "TA"]
[PlyCount "62"]
[EventDate "2022.06.09"]
[EventType "team-tourn"]
[EventCountry "FRA"]
[SourceTitle "playchess.com"]
[Source "ChessBase"]
[SourceQuality "1"]
[TimeControl "40/5400+30:1800+30"]

{[%evp 9,62,0,18,0,21,-8,-9,-23,-15,-20,-18,-25,-18,-26,-18,-14,-6,-10,2,-108,-121,-123,-105,-125,-128,-132,-133,-145,-152,-154,-152,-152,-141,-142,-139,-205,-197,-364,-364,-367,-362,-332,-370,-368,-368,-357,-321,-394,-381,-409,-392,-456,-436,-496,-481]} 1. Nf3 {[%emt 0:00:03]} Nf6 {[%emt 0:00:19]} 2. g3 {[%emt 0:00:10]} d5 {[%emt 0:01:48]} 3. Bg2 {[%emt 0:00:29]} c6 {[%emt 0:00:51]} 4. d4 {[%emt 0:00:28]} Bf5 {[%emt 0:01:13]} 5. O-O {[%emt 0:01:16]} e6 {[%emt 0:02:09]} 6. Re1 {[%emt 0:06:01] D02: 1 d4 d5 2 Nf3 sidelines, including 2...Nf6 3 g3 and 2...Nf6 3 Bf4.} Nbd7 {[%emt 0:05:39]} 7. c3 {[%emt 0:05:34]} Be7 {[%emt 0:02:52]} 8. Bg5 {[%emt 0:02:18] The position is equal.} O-O {[%emt 0:01:53] [#]} 9. Nh4 $146 {[%emt 0:03:06]} ({Predecessor:} 9. Nbd2 h6 10. Bxf6 Nxf6 11. Ne5 c5 12. e4 Bh7 13. dxc5 Bxc5 14. Nb3 Bd6 15. exd5 exd5 16. Bxd5 Nxd5 17. Qxd5 Qc7 18. Nc4 Rfd8 19. Nxd6 Rxd6 20. Qe5 Rc8 21. Qe8+ {1-0 (21) Draga,B (1842)-Kelemen,L (1568) Budapest 2009}) 9... Be4 {[%emt 0:03:24]} 10. Nd2 {[%emt 0:03:43]} Bxg2 {[%emt 0:00:45]} 11. Nxg2 {[%emt 0:00:32]} c5 {[%emt 0:02:04]} 12. e4 {[%emt 0:06:09]} dxe4 {[%emt 0:01:08]} 13. dxc5 {[%emt 0:01:47]} e3 {[%emt 0:08:05]} 14. Rxe3 {[%emt 0:04:10]} (14. Nxe3 $11 Nxc5 15. Nb3) 14... Nd5 $17 {[%emt 0:05:37][%cal Bf6d5,Bd5e3,Be3d1][%mdl 32] Black keeps a firm grip on the game.} ({Much weaker is} 14... Nxc5 $6 15. Bxf6 Bxf6 16. Qc2 $11) (14... Bxc5 $6 15. Re2 $11) 15. Bxe7 {[%emt 0:00:54]} Nxe3 {[%emt 0:00:25]} ({Reject} 15... Qxe7 $6 16. Re1 $11) 16. Bxd8 {[%emt 0:00:25]} Nxd1 {[%emt 0:00:05]} 17. Be7 {[%emt 0:04:28]} Rfe8 {[%emt 0:00:35]} ({And not} 17... Nxb2 18. Bxf8 Kxf8 19. Rb1 $15) 18. Rxd1 {[%emt 0:00:54]} Rxe7 {[%emt 0:00:05]} 19. b4 {[%emt 0:01:40]} a5 {[%emt 0:02:04]} 20. a3 {[%emt 0:06:16]} axb4 {[%emt 0:03:36]} 21. axb4 {[%emt 0:00:25]} Nf6 {[%emt 0:05:36] [#] Threatens to win with ...Rd7.} 22. Ne3 {[%emt 0:08:26]} (22. Nc4 $17 {keeps fighting.}) 22... Rd7 $19 {[%emt 0:01:47] aiming for ...Ra2.} 23. Ndc4 $2 {[%emt 0:01:03]} (23. Kf1) 23... Rxd1+ {[%emt 0:01:32]} 24. Nxd1 {[%emt 0:00:05][%mdl 4096] Endgame KRN-KNN} Ra1 {[%emt 0:02:18]} 25. Nce3 {[%emt 0:00:09]} Ne4 {[%emt 0:01:40] [#] ...Nxc3 is the strong threat.} 26. Kg2 {[%emt 0:00:26]} Rc1 {[%emt 0:00:54]} 27. c4 {[%emt 0:00:43]} Rb1 {[%emt 0:02:06] Prevents Nb2.} 28. Kf3 {[%emt 0:02:48]} f5 {[%emt 0:00:36]} 29. b5 {[%emt 0:07:21]} Nxc5 {[%emt 0:02:26]} 30. Nc3 {[%emt 0:00:50]} Rb3 {[%emt 0:01:07]} 31. Ne2 {[%emt 0:01:04]} g5 {[%emt 0:01:39] Weighted Error Value: White=0.32/Black=0.04 (flawless)} 0-1